bitfinex/quotes_ETHUSD_20241207
["timestamp","ask_amount","ask_price","bid_price","bid_amount"]
[1733582753464,0.1651323,4008.1,4007.8,2.33313076]
[1733582753666,0.1651323,4008.1,4008.0,1.7465]
[1733582753903,0.1651323,4008.1,4007.8,4.48770284]
[1733582754108,0.7602,4008.0,4007.6,1.74666]
[1733582754411,0.7602,4008.0,4007.7,1.74663]
[1733582755965,0.7602,4008.0,4007.8,4.07968076]
[1733582756209,0.7602,4008.0,4007.9,0.40796808]
[1733582756822,0.1651323,4008.1,4007.9,2.15451808]
[1733582757110,0.1651323,4008.1,4008.0,1.7465]
[1733582758173,0.7602,4008.0,4007.4,2.33313076]
[1733582759407,0.7602,4008.0,4007.5,1.74672]
[1733582759708,0.7602,4008.0,4007.7,1.74663]
[1733582760278,0.7602,4008.0,4007.8,1.74657]
[1733582760875,0.1651323,4008.1,4007.9,1.74655]
[1733582761075,0.1651323,4008.1,4008.0,1.7465]
[1733582768639,0.1651323,4008.1,4008.0,2.4983]
[1733582768961,0.1651323,4008.1,4008.0,2.98144308]
[1733582769534,0.1651323,4008.1,4008.0,2.22964308]
[1733582771777,0.791,4009.6,4008.5,0.7518]
[1733582771929,0.791,4009.6,4009.1,2.33313076]
[1733582772128,0.12104407,4009.5,4009.1,2.33313076]
[1733582772862,0.12104407,4009.5,4009.1,2.56644384]
[1733582773283,0.12104407,4009.5,4009.4,1.74589]
[1733582773928,0.791,4009.6,4009.4,1.74589]
[1733582774133,0.791,4009.9,4009.4,1.74589]
[1733582774549,0.12104407,4009.8,4009.1,3.31824384]
[1733582774754,0.12104407,4009.8,4009.4,1.74588]
[1733582775184,0.791,4009.9,4009.4,1.74588]
[1733582775466,0.791,4009.9,4009.5,1.74583]
[1733582775467,0.12104407,4009.7,4009.5,1.74583]
[1733582775639,0.791,4009.9,4009.5,1.74583]
[1733582776327,0.791,4009.9,4009.6,1.7458]
[1733582776556,0.791,4009.9,4009.7,0.17458]
[1733582777253,0.625,4010.0,4009.9,1.74567]
[1733582777677,0.625,4010.0,4009.9,4.07880076]
[1733582778255,0.625,4010.0,4009.9,4.10373536]
[1733582778487,0.625,4010.0,4009.9,4.07880076]
[1733582778712,0.625,4010.0,4009.9,5.02553391]
[1733582779204,0.625,4010.0,4009.9,5.77733391]
[1733582779555,1e-05,4010.0,4009.9,8.77733391]
[1733582779754,0.791,4011.2,4010.7,1.74532]
[1733582779955,0.791,4011.2,4010.6,2.33313076]
[1733582780250,0.791,4011.2,4010.7,0.23331308]
[1733582780490,0.791,4011.2,4010.2,5.33313076]
[1733582780801,0.791,4011.2,4010.2,7.07866076]
[1733582780968,0.791,4011.2,4010.2,5.33313076]
[1733582781175,1.74511,4011.2,4010.2,2.33313076]
[1733582781491,0.81,4011.1,4010.2,2.33313076]
[1733582781696,0.81,4011.0,4010.2,2.33313076]
[1733582781995,0.81,4011.0,4010.2,4.07867076]
[1733582782296,0.1223078,4010.9,4010.3,1.74547]
[1733582782675,0.81,4011.0,4010.4,1.74545]
[1733582782978,0.81,4011.0,4010.5,1.74541]
[1733582783182,0.81,4011.0,4010.3,0.31172308]
[1733582783578,0.12357138,4010.9,4010.3,2.05722308]
[1733582783879,0.81,4011.0,4010.3,2.05722308]
[1733582784294,0.12357138,4010.9,4010.4,2.26289538]
[1733582784482,0.81,4011.0,4010.6,2.33313076]
[1733582784677,0.81,4011.0,4010.8,1.74528]
[1733582785011,0.81,4011.0,4010.4,0.51744538]
[1733582785177,2.0098723,4012.1,4009.8,2.33313076]
[1733582785178,0.55,4010.9,4009.8,2.33313076]
[1733582785372,0.55,4010.9,4009.7,0.17458]
[1733582785373,0.81,4010.7,4009.7,0.17458]
[1733582785601,0.81,4010.7,4009.4,4.07900076]
[1733582785816,2.55534,4010.7,4009.4,4.07900076]
[1733582785987,0.81,4010.6,4009.4,4.07900076]
[1733582786304,0.93345154,4010.6,4009.4,4.07900076]
[1733582786516,0.93345154,4010.6,4009.5,1.74584]
[1733582786821,0.81,4010.2,4008.9,4.07921076]
[1733582786997,0.81,4010.1,4008.9,4.07921076]
[1733582787312,0.93332709,4010.1,4009.0,1.74606]
[1733582787791,0.93332709,4010.1,4008.9,2.33313076]
[1733582787967,1.86892709,4010.1,4008.9,2.33313076]
[1733582788167,0.81,4009.8,4008.9,2.33313076]
[1733582788766,0.12332709,4009.7,4008.6,1.74623]
[1733582788971,0.81,4009.6,4008.3,1.74636]
[1733582789171,0.81,4009.6,4008.1,2.33313076]
[1733582789172,0.81,4009.1,4008.1,2.33313076]
[1733582789608,0.81,4008.9,4007.7,2.46046206]
[1733582789800,0.81,4008.9,4007.8,0.24604621]
[1733582789969,0.81,4008.7,4007.8,0.24604621]
[1733582790412,0.81,4008.7,4008.5,2.33313076]
[1733582790568,0.12286609,4008.6,4008.5,2.33313076]
[1733582791097,0.81,4008.7,4008.5,2.33313076]
[1733582791274,0.81,4008.7,4008.6,2.15418308]
[1733582791620,0.81,4009.7,4008.6,2.15418308]
[1733582791801,0.81,4009.7,4008.7,1.74618]
[1733582792106,0.12259399,4009.6,4008.8,1.74615]
[1733582792617,0.55,4009.0,4007.8,0.24604621]
[1733582792768,0.81,4008.9,4007.9,1.74653]
[1733582793110,0.81,4008.9,4008.1,2.33313076]
[1733582793111,0.12259399,4008.8,4008.1,2.33313076]
[1733582793315,0.12259399,4008.8,4008.5,1.74628]
[1733582793607,0.81,4008.9,4008.7,1.74619]
[1733582793769,0.81,4010.0,4008.7,1.74619]
[1733582793967,0.81,4009.9,4008.7,1.74619]
[1733582794179,1.74572,4009.8,4008.5,2.33313076]
[1733582794488,0.81,4009.7,4008.5,0.73152586]
[1733582794802,0.93204528,4009.6,4008.5,2.47780586]
[1733582794971,0.93204528,4009.6,4008.5,1.74628]
[1733582795312,0.93204528,4009.6,4008.2,0.23580783]
[1733582795487,0.81,4009.6,4008.6,1.74623]
[1733582795688,0.1221283,4009.5,4008.6,1.74623]
[1733582796308,0.1221283,4009.5,4008.8,1.74614]
[1733582796495,0.1221283,4009.5,4009.0,1.74606]
[1733582796809,0.81,4009.6,4009.1,1.74602]
[1733582797011,0.81,4009.6,4009.2,1.74597]
[1733582798101,0.81,4009.6,4008.8,0.40792708]
[1733582798281,0.81,4009.6,4008.2,0.23580783]
[1733582798282,0.81,4009.6,4008.7,1.74618]
[1733582798510,0.12213291,4009.5,4008.5,1.74626]
[1733582798724,0.81,4009.3,4008.3,1.74636]
[1733582799045,0.81,4009.1,4008.3,1.74636]
[1733582799201,0.81,4009.1,4008.2,0.23580783]
[1733582799404,0.81,4009.1,4008.3,0.02494423]
[1733582799715,0.81,4009.1,4008.6,1.74623]
[1733582799924,0.81,4009.1,4008.7,1.74619]
[1733582801135,0.81,4009.1,4008.6,1.920853]
[1733582801314,0.81,4009.1,4008.7,1.7462]
[1733582801729,0.81,4009.1,4008.6,0.174623]
[1733582801945,0.81,4009.1,4008.4,1.74629]
[1733582802142,0.12207757,4009.0,4008.4,1.74629]
[1733582802346,0.7555,4008.9,4008.2,0.23580783]
[1733582802507,0.26235576,4008.9,4007.9,2.33313076]
[1733582802707,0.87757757,4008.8,4007.9,2.33313076]
[1733582803108,0.7555,4008.8,4007.9,2.33313076]
[1733582803610,0.7555,4008.8,4007.8,0.0308]
[1733582803611,2.50167,4008.8,4007.8,0.0308]
[1733582803921,0.7555,4008.6,4007.8,0.0308]
[1733582804251,0.7555,4008.4,4007.8,0.0308]
[1733582804620,0.7555,4008.2,4007.8,0.0308]
[1733582805147,1.86795934,4008.3,4007.8,0.0308]
[1733582805148,0.7555,4008.0,4007.8,0.0308]
[1733582805705,0.12157011,4007.9,4007.8,0.0308]
[1733582806436,0.87707011,4007.9,4007.8,0.0308]
[1733582806836,3.43597712,4007.9,4007.8,0.0308]
[1733582807031,1.68942712,4007.9,4007.8,0.0308]
[1733582807437,1.13942712,4007.9,4007.8,0.0308]
[1733582807607,0.87707011,4007.9,4007.8,0.0308]
[1733582810115,1.42707011,4007.9,4007.8,0.0308]
[1733582810322,3.17362011,4007.9,4007.8,0.0308]
[1733582811348,3.17362011,4007.9,4006.0,1.74735]
[1733582811349,2.29686,4007.2,4006.0,1.74735]
[1733582811516,0.55,4007.0,4005.9,2.33313076]
[1733582811837,0.55,4007.0,4006.0,0.40805908]
[1733582811838,0.87554236,4006.9,4006.0,0.40805908]
[1733582812037,0.87554236,4006.9,4005.9,2.33313076]
[1733582812345,0.87554236,4006.9,4006.2,1.74728]
[1733582812853,0.87554236,4006.9,4006.0,1.74736]
[1733582813011,0.87554236,4006.9,4006.1,0.40804908]
[1733582813439,0.7555,4006.9,4006.1,0.40804908]
[1733582813641,0.12003775,4006.8,4006.0,1.74737]
[1733582813920,0.7555,4006.7,4006.4,2.33313076]
[1733582814120,0.55,4007.7,4006.8,1.747]
[1733582814357,0.55,4007.5,4006.5,1.74715]
[1733582814515,0.7555,4007.4,4006.6,0.40802808]
[1733582814867,0.7555,4007.2,4006.1,1.74733]
[1733582815019,0.7555,4007.0,4006.1,1.74733]
[1733582815226,0.7555,4007.0,4005.6,2.33313076]
[1733582815433,0.7555,4007.0,4005.8,1.74744]
[1733582815624,0.7555,4007.0,4005.9,0.40805708]
[1733582816044,0.7555,4007.0,4005.9,2.15546708]
[1733582816433,0.7555,4006.9,4005.9,2.15546708]
[1733582817218,0.7555,4006.9,4006.2,1.74729]
[1733582818927,0.7555,4006.9,4005.9,0.40805708]
[1733582819128,0.7555,4006.9,4006.5,1.74715]
[1733582820675,0.7555,4006.9,4005.6,2.33313076]
[1733582820851,0.7555,4006.9,4005.7,0.31129308]
[1733582821224,0.7555,4006.9,4006.1,1.74733]
[1733582821568,0.7624,4006.7,4005.7,0.31129308]
[1733582821877,0.7624,4006.7,4006.0,1.74737]
[1733582822075,0.11964613,4006.6,4006.0,1.74737]
[1733582822238,0.7624,4006.7,4006.0,1.74737]
[1733582822570,1.74686,4007.2,4006.0,1.74737]
[1733582822571,0.7624,4006.4,4006.0,1.74737]
[1733582822737,0.7624,4006.4,4006.0,1.95323631]
[1733582823163,0.7624,4006.4,4006.0,0.20586631]
[1733582823364,0.7624,4006.4,4005.9,1.74741]
[1733582823582,0.11957224,4006.3,4005.9,1.74741]
[1733582823785,0.7624,4006.4,4006.0,1.74736]
[1733582824259,0.7624,4006.4,4005.8,1.74745]
[1733582824440,0.7624,4006.4,4005.9,1.74738]
[1733582824637,0.11957224,4006.3,4005.9,1.74738]
[1733582824870,0.11957224,4006.3,4005.7,0.31129308]
[1733582825143,0.7624,4006.7,4005.5,1.74759]
[1733582825384,0.7624,4006.5,4005.5,1.74759]
[1733582825562,0.66958147,4006.6,4005.2,4.08082076]
[1733582825563,0.7624,4006.3,4005.4,1.74761]
[1733582825764,4.07981076,4007.6,4006.0,2.33313076]
[1733582825765,0.7624,4006.1,4006.0,2.33313076]
[1733582825980,0.11956762,4006.1,4006.0,1.74737]
[1733582826165,0.11956762,4006.1,4006.0,0.349487]
[1733582826347,0.7624,4006.4,4006.0,0.349487]
[1733582826547,0.11956762,4006.3,4006.0,1.74737]
[1733582826760,0.7624,4006.4,4005.6,3.11143076]
[1733582827052,0.7624,4006.4,4006.2,1.74726]
[1733582827250,0.7624,4006.4,4005.6,3.11143076]
[1733582827251,0.7624,4006.4,4005.9,1.7474]
[1733582827648,0.7624,4006.4,4005.7,1.7475]
[1733582827846,0.7624,4006.4,4005.7,0.40806308]
[1733582828172,0.7624,4006.1,4004.9,0.7783]
[1733582828354,0.7624,4006.1,4005.2,2.33313076]
[1733582828560,0.7624,4006.1,4005.6,1.74754]
[1733582828883,0.55,4007.2,4006.0,1.74737]
[1733582829081,2.33313076,4007.8,4005.8,1.74746]
[1733582829082,0.55,4006.8,4005.8,1.74746]
[1733582829412,0.7624,4006.7,4005.9,1.74738]
[1733582829697,0.7624,4006.7,4005.1,3.998765]
[1733582829698,0.7624,4006.5,4005.3,3.0]
[1733582829984,0.7624,4006.3,4005.6,1.74752]
[1733582830142,0.7624,4006.3,4005.6,1.74751]
[1733582830346,0.11936899,4006.2,4005.3,3.0]
[1733582830577,0.7624,4006.1,4005.5,1.74759]
[1733582831189,0.11936899,4006.0,4005.5,1.74759]
[1733582831479,0.11936899,4006.0,4005.6,1.74752]
[1733582831853,0.7624,4006.1,4005.6,1.74752]
[1733582832586,0.7624,4006.1,4005.8,1.74746]
[1733582834281,0.7624,4006.1,4005.7,1.7475]
[1733582834493,0.7624,4006.1,4005.4,4.74762]
[1733582834797,0.7624,4006.1,4005.5,3.0]
[1733582834964,0.55,4006.0,4005.2,1.74769]
[1733582835160,0.88157499,4005.9,4005.1,1.74774]
[1733582835484,0.88157499,4005.9,4004.8,2.33313076]
[1733582835652,0.55,4005.8,4005.0,1.74781]
[1733582835847,0.7624,4005.7,4005.0,1.74781]
[1733582836049,0.7624,4005.7,4004.8,0.56217308]
[1733582836348,0.55,4005.8,4004.9,1.74784]
[1733582836349,0.7624,4005.5,4004.9,1.74784]
[1733582836569,0.11905025,4005.4,4004.9,1.74784]
[1733582837309,0.11905025,4005.4,4004.6,1.74794]
[1733582837517,0.7624,4005.5,4004.8,1.74789]
[1733582837714,0.7624,4005.2,4004.4,2.33313076]
[1733582838092,0.11905025,4005.1,4005.0,1.74781]
[1733582838397,0.7624,4005.2,4005.0,1.74781]
[1733582838572,0.7624,4005.2,4004.5,1.74803]
[1733582838902,0.7624,4005.2,4004.6,1.74798]
[1733582839105,0.7624,4005.2,4004.6,0.48594108]
[1733582839309,0.7624,4005.2,4004.8,1.74788]
[1733582839519,0.7624,4005.2,4004.2,1.74816]
[1733582839684,0.7624,4005.2,4004.5,1.74799]
[1733582840181,0.7624,4005.0,4004.5,1.74799]
[1733582840583,0.11882845,4004.9,4004.5,1.74799]
[1733582840818,0.11882845,4004.9,4002.6,0.1]
[1733582840819,0.7624,4004.7,4003.4,2.52679]
[1733582840998,0.7624,4004.7,4003.5,0.252679]
[1733582841203,0.11882383,4004.6,4003.9,1.74826]
[1733582841403,0.11882383,4004.6,4004.0,1.74823]
[1733582841575,0.7624,4004.7,4004.0,1.74823]
[1733582842476,0.89364,4004.7,4004.0,1.74823]
[1733582842713,0.11882383,4004.6,4004.0,1.74823]
[1733582843014,0.89364,4004.7,4004.0,1.74823]
[1733582843515,0.11882383,4004.6,4004.0,1.74823]
[1733582844512,0.89364,4004.7,4004.0,1.74823]
[1733582844876,0.11882383,4004.6,4004.0,1.74823]
[1733582845327,0.7624,4004.7,4004.0,1.74823]
[1733582845528,0.7624,4004.7,4004.2,1.74814]
[1733582845746,0.11882383,4004.6,4004.3,1.74807]
[1733582846013,0.11882383,4004.5,4004.3,1.74807]
[1733582846213,0.7624,4004.7,4004.3,1.74807]
[1733582846425,0.11882383,4004.4,4004.0,1.74822]
[1733582846595,0.7639,4004.3,4004.0,1.74822]
[1733582846933,0.7639,4004.3,4003.7,1.74835]
[1733582848133,0.7639,4004.3,4003.9,1.74828]
[1733582849229,0.7639,4004.3,4003.7,1.74836]
[1733582849602,0.1182092,4004.2,4003.8,1.74833]
[1733582849943,0.1182092,4004.2,4003.6,5.33313076]
[1733582850145,0.55,4004.2,4003.6,7.08155076]
[1733582850363,0.55,4004.2,4003.6,1.74842]
[1733582851121,0.7639,4004.1,4003.3,1.74851]
[1733582851427,0.89529,4004.1,4003.4,1.7485]
[1733582853248,0.7639,4003.8,4003.1,1.7486]
[1733582853751,0.11753423,4003.7,4003.1,1.7486]
[1733582854258,0.7639,4003.8,4003.1,1.7486]
[1733582854747,0.11752035,4003.7,4003.1,1.7486]
[1733582854956,0.11752035,4003.7,4002.8,2.33313076]
[1733582854957,1.3139,4003.6,4002.9,1.74872]
[1733582855303,0.7639,4003.5,4002.6,1.74886]
[1733582855553,0.7639,4003.5,4002.6,2.84867916]
[1733582855748,0.7639,4003.5,4002.9,1.7487]
[1733582855994,0.7639,4003.5,4003.0,1.74867]
[1733582856795,0.7639,4003.5,4002.9,1.7487]
[1733582856951,0.7639,4003.5,4002.7,1.74881]
[1733582857148,0.7639,4003.5,4002.9,1.74869]
[1733582857352,0.7639,4003.5,4002.6,2.84867916]
[1733582857578,0.7639,4003.5,4003.1,1.74864]
[1733582858098,0.7639,4003.5,4002.8,2.33313076]
[1733582858252,0.7639,4003.5,4003.3,1.74854]
[1733582858648,0.7639,4003.5,4003.4,1.74851]
[1733582858853,0.7639,4003.3,4002.7,1.74881]
[1733582859053,0.7639,4003.3,4002.4,2.33313076]
[1733582859269,0.7639,4003.3,4003.2,1.7486]
[1733582859468,0.7639,4005.0,4004.4,1.74806]
[1733582859736,0.7639,4005.0,4004.4,1.74807]
[1733582859865,0.11273672,4004.9,4003.7,2.33313076]
[1733582860069,0.7639,4005.0,4004.2,1.74816]
[1733582860314,0.7639,4005.0,4003.9,1.74826]
[1733582860514,0.7639,4004.8,4003.5,1.74843]
[1733582860719,1.74781,4005.0,4003.3,2.33313076]
[1733582860720,0.55,4004.5,4003.3,5.33313076]
[1733582860866,0.7639,4004.5,4003.3,5.33313076]
[1733582861072,0.7639,4004.3,4003.6,1.74842]
[1733582861371,0.7639,4004.3,4003.7,4.08149076]
[1733582861796,0.11273672,4004.2,4003.7,4.08149076]
[1733582862418,0.11273672,4004.2,4003.7,4.08148076]
[1733582862710,0.7639,4004.3,4003.7,4.08148076]
[1733582862947,0.7639,4004.3,4003.8,1.74832]
[1733582863075,0.10897882,4004.2,4003.8,1.74832]
[1733582863277,0.7639,4004.3,4003.8,1.74832]
[1733582863668,0.7639,4004.3,4003.7,2.33313076]
[1733582863669,0.55,4004.2,4003.7,2.33313076]
[1733582863873,0.55,4004.0,4003.5,1.74846]
[1733582864615,0.10897882,4003.9,4003.5,1.74846]
[1733582864974,0.55,4004.0,4003.5,1.74846]
[1733582865171,0.55,4004.0,4003.3,2.33313076]
[1733582865172,0.10897882,4003.9,4003.3,2.33313076]
[1733582865372,0.10897882,4003.9,4002.7,0.30001779]
[1733582865373,0.55,4003.7,4003.2,1.74855]
[1733582865684,0.55,4003.5,4002.9,4.08182076]
[1733582866205,0.55,4003.5,4002.9,2.33313076]
[1733582866414,0.10897882,4003.4,4002.9,2.33313076]
[1733582866924,0.10897882,4003.4,4003.1,1.74864]
[1733582867324,0.10897882,4003.4,4002.9,4.08186076]
[1733582867742,0.55,4003.5,4003.0,1.74866]
[1733582868040,0.55,4003.5,4003.1,1.74863]
[1733582868424,0.55,4003.5,4002.9,2.33313076]
[1733582868593,0.55,4003.3,4002.5,2.33313076]
[1733582868938,0.7944,4003.2,4002.5,2.33313076]
[1733582869329,0.55,4003.0,4002.5,2.33313076]
[1733582869525,0.7944,4002.9,4002.5,2.33313076]
[1733582870030,0.55,4002.7,4002.1,2.33313076]
[1733582870232,0.7944,4002.6,4002.1,2.33313076]
[1733582870461,0.7944,4002.6,4002.1,4.08219076]
[1733582870930,0.7944,4002.6,4002.1,1.74906]
[1733582871140,0.55,4002.5,4001.9,1.74916]
[1733582871303,0.55,4002.3,4001.7,2.33313076]
[1733582871838,0.10886289,4002.2,4001.7,4.08237076]
[1733582871986,0.7931,4002.1,4001.7,4.08237076]
[1733582872187,0.65886289,4002.0,4001.3,4.08254076]
[1733582872493,0.55,4001.8,4001.3,4.08254076]
[1733582872918,0.10886289,4001.7,4001.3,4.08254076]
[1733582873124,0.7931,4001.6,4001.1,1.74951]
[1733582873439,0.7931,4001.6,4000.9,2.33313076]
[1733582873440,0.90196289,4001.6,4001.3,1.74942]
[1733582873597,0.7931,4001.6,4001.3,1.74942]
[1733582873934,0.7931,4001.6,4001.4,1.74936]
[1733582874089,0.7931,4001.6,4001.1,2.33313076]
[1733582874312,0.7931,4001.9,4001.5,2.33313076]
[1733582874950,0.7931,4001.9,4001.8,1.74921]
[1733582875514,0.13444,4002.6,4000.1,1.74993]
[1733582875515,0.7931,4001.7,4000.1,1.74993]
[1733582875718,0.55,4001.6,4001.1,1.7495]
[1733582876042,0.55,4001.4,4000.5,2.33313076]
[1733582876248,1.3431,4001.2,4000.6,1.74972]
[1733582876756,1.3431,4001.2,4000.5,2.33313076]
[1733582877053,1.3431,4001.2,4000.7,1.74967]
[1733582877413,0.55,4001.0,4000.5,2.33313076]
[1733582877741,0.55,4001.0,4000.4,1.74978]
[1733582878458,0.55,4000.8,4000.4,1.74978]
[1733582879158,0.55,4000.8,4000.5,1.74977]
[1733582880409,0.7931,4000.7,4000.0,2.33313076]
[1733582880822,0.7931,4000.7,3999.6,2.33313076]
[1733582880823,0.65621387,4000.6,3999.6,2.33313076]
[1733582881058,0.55,4000.4,3999.6,2.33313076]
[1733582881251,0.7931,4000.5,4000.0,2.33313076]
[1733582881453,0.8287,4002.4,4000.7,1.74969]
[1733582881627,0.8287,4002.4,4000.9,2.33313076]
[1733582881830,0.8287,4002.2,4001.0,1.74956]
[1733582882059,0.8287,4002.2,4001.3,1.74942]
[1733582882424,0.8287,4002.2,4001.0,1.74956]
[1733582882930,0.8287,4002.2,4001.8,1.7492]
[1733582883259,0.8287,4002.2,4001.9,1.74916]
[1733582883862,0.8287,4002.2,4002.0,1.74912]
[1733582884518,0.8287,4002.2,4002.1,1.74908]
[1733582884719,0.8287,4002.5,4002.4,1.7489]
[1733582885362,0.13444,4003.5,4002.1,2.33313076]
[1733582885363,0.8287,4003.4,4002.1,2.33313076]
[1733582885590,0.8287,4003.4,4002.7,2.33313076]
[1733582885858,0.8287,4003.4,4003.3,1.74855]
[1733582886219,0.8287,4004.7,4003.3,1.74855]
[1733582886423,0.8287,4004.7,4003.1,2.33313076]
[1733582886623,0.8287,4004.7,4004.0,1.74824]
[1733582887266,0.8287,4004.7,4004.2,1.74816]
[1733582887425,0.10727171,4004.6,4004.2,1.74816]
[1733582887765,0.8287,4004.7,4004.2,1.74816]
[1733582887969,0.8287,4004.7,4004.4,1.74807]
[1733582888871,0.8287,4004.7,4004.5,1.74801]
[1733582889375,0.8287,4004.7,4004.2,1.74812]
[1733582889531,0.8287,4004.7,4003.5,2.33313076]
[1733582889725,0.8287,4004.7,4003.6,1.74842]
[1733582889987,0.65727171,4004.6,4003.9,1.74826]
[1733582890126,0.65727171,4004.6,4004.3,2.33313076]
[1733582890325,0.65727171,4004.6,4004.4,1.74804]
[1733582890759,0.55,4004.6,4004.4,1.74804]
[1733582891265,0.55,4004.6,4003.9,4.08140076]
[1733582891472,0.55,4004.6,4003.9,1.74828]
[1733582891779,0.55,4004.6,4004.4,1.74807]
[1733582892675,0.8287,4005.4,4004.9,1.74783]
[1733582893137,0.10896019,4005.3,4004.9,1.74783]
[1733582893767,0.8287,4005.4,4004.9,1.74783]
[1733582894068,0.8287,4005.4,4005.1,1.74775]
[1733582894235,0.8287,4005.4,4004.9,2.33313076]
[1733582894436,0.8287,4005.4,4005.2,1.7477]
[1733582895239,0.8287,4005.4,4004.9,2.33313076]
[1733582895847,0.55,4005.3,4004.9,2.33313076]
[1733582896046,0.55,4005.3,4005.0,1.74781]
[1733582896341,0.55,4005.3,4005.1,1.74776]
[1733582896831,0.55,4005.3,4004.9,2.33313076]
[1733582897032,0.55,4005.3,4004.8,1.74787]
[1733582897459,0.10993352,4005.2,4004.8,1.74787]
[1733582897660,0.55,4005.3,4004.8,1.74787]
[1733582897842,0.55,4005.3,4004.9,1.74785]
[1733582898047,0.55,4005.0,4004.9,1.74785]
[1733582898254,0.55,4005.0,4004.5,2.33313076]
[1733582898596,0.55,4004.9,4004.6,1.74796]
[1733582898880,0.10993352,4004.8,4004.6,1.74796]
[1733582899047,0.55,4004.7,4004.6,1.74796]
[1733582899235,0.55,4005.3,4004.6,1.74796]
[1733582899578,0.77249305,4005.3,4004.6,1.74796]
[1733582899737,0.55,4005.1,4004.6,1.74796]
[1733582900067,0.55,4005.1,4004.3,1.74808]
[1733582900231,1.3787,4005.2,4004.1,2.33313076]
[1733582900435,1.3787,4005.2,4004.5,1.748]
[1733582900436,0.55,4004.9,4004.5,1.748]
[1733582900635,0.10993352,4004.8,4004.3,1.74812]
[1733582900850,0.10993352,4004.8,4004.4,1.74806]
[1733582900851,0.55,4004.7,4004.4,1.74806]
[1733582901063,0.55,4004.7,4004.4,1.74803]
[1733582901381,0.55,4004.5,4004.4,1.74803]
[1733582901742,0.55,4005.1,4004.4,1.74803]
[1733582901972,0.65993352,4004.5,4004.4,1.74803]
[1733582902269,0.55,4004.5,4004.4,1.74803]
[1733582902475,0.65993352,4004.5,4004.4,1.74803]
[1733582903179,0.55,4004.5,4004.4,1.74803]
[1733582904040,0.65993352,4004.5,4004.4,1.74803]
[1733582905452,0.65993352,4004.5,4004.2,1.74816]
[1733582905673,0.55,4004.4,4004.1,2.33313076]
[1733582905878,0.55,4004.4,4004.3,1.74812]
[1733582906244,0.55,4004.7,4004.4,1.74807]
[1733582907173,0.55,4004.7,4004.1,4.08130076]
[1733582907552,0.55,4004.7,4004.1,2.33313076]
[1733582907740,0.55,4004.7,4004.2,1.74816]
[1733582908137,0.68439,4004.7,4004.0,1.74823]
[1733582908374,0.68439,4004.7,4003.9,1.74828]
[1733582908775,0.55,4004.5,4003.9,1.74828]
[1733582909563,0.55,4004.5,4003.7,2.33313076]
[1733582909767,0.55,4004.4,4003.3,2.33313076]
[1733582910087,0.55,4004.2,4003.4,1.7485]
[1733582910438,0.55,4004.2,4003.3,2.33313076]
[1733582910644,0.147829,4004.4,4002.9,2.33313076]
[1733582910645,0.55,4004.1,4002.9,2.33313076]
[1733582910843,1.3439,4004.1,4003.2,1.74859]
[1733582911447,1.3439,4004.1,4003.3,1.74855]
[1733582911643,0.1098362,4004.0,4003.3,1.74855]
[1733582911877,0.55,4003.9,4002.9,2.33313076]
[1733582912069,0.7939,4003.8,4003.1,1.74863]
[1733582912387,0.7939,4003.8,4002.9,4.08186076]
[1733582912388,0.6598362,4003.7,4002.9,4.08186076]
[1733582912543,0.55,4003.5,4002.9,2.33313076]
[1733582912748,0.55,4003.3,4002.5,4.08203076]
[1733582913141,1.3439,4003.1,4002.5,2.33313076]
[1733582913377,1.48917954,4003.1,4002.3,1.74898]
[1733582913778,0.10889537,4003.0,4002.3,1.74898]
[1733582913981,0.55,4002.9,4002.3,1.74898]
[1733582914186,0.55,4002.9,4002.1,2.33313076]
[1733582914187,0.10889537,4003.0,4002.4,1.74894]
[1733582914393,0.10858471,4002.8,4001.9,0.7693]
[1733582914600,0.55,4003.0,4001.5,2.33313076]
[1733582914884,0.7939,4002.6,4001.8,1.7492]
[1733582915189,0.55,4002.5,4001.8,1.7492]
[1733582915545,0.10858471,4002.4,4001.8,1.7492]
[1733582917473,0.10858471,4002.4,4001.6,1.74929]
[1733582917660,0.10858471,4002.4,4001.5,2.33313076]
[1733582917865,0.10858471,4002.4,4001.3,0.7693]
[1733582917866,0.10858471,4002.4,4002.0,2.33313076]
[1733582918176,0.7939,4002.6,4002.0,2.33313076]
[1733582918689,0.7939,4003.9,4002.4,2.33313076]
[1733582918897,0.7939,4003.9,4002.9,1.74872]
[1733582919061,0.7939,4003.9,4002.1,0.7693]
[1733582919062,0.7939,4003.9,4003.1,1.74864]
[1733582919266,0.10858471,4003.8,4003.1,1.74864]
[1733582919891,0.7939,4003.7,4002.8,2.33313076]
[1733582920068,0.7939,4003.7,4002.9,1.74873]
[1733582920399,0.10866818,4003.6,4003.0,1.74867]
[1733582920605,0.10866818,4003.6,4002.8,2.33313076]
[1733582920899,0.10877019,4003.5,4002.9,0.40819408]
[1733582921400,0.7939,4003.7,4003.1,1.74864]
[1733582921614,0.10876555,4003.4,4003.1,1.74864]
[1733582921789,0.7939,4003.7,4002.8,2.33313076]
[1733582922012,0.7939,4003.7,4002.6,1.74886]
[1733582922013,0.55,4003.6,4002.6,1.74886]
[1733582922181,0.96798455,4003.6,4002.6,1.74886]
[1733582922577,0.55,4003.4,4002.7,1.74881]
[1733582923078,0.55,4003.2,4002.7,1.74881]
[1733582923281,0.55,4003.4,4002.5,1.7489]
[1733582923506,0.10877483,4003.3,4002.4,2.33313076]
[1733582923680,0.55,4003.2,4002.5,0.23331308]
[1733582923880,0.7959,4003.5,4003.2,1.7486]
[1733582925025,0.7959,4003.5,4002.8,2.33313076]
[1733582925026,0.7959,4003.5,4003.3,1.74855]